[Event "Late-Titled-Tuesday-Blitz-February-20-2024"]
[Site "Chess.com"]
[Date "2024.02.20"]
[Round "8"]
[White "Muracle"]
[Black "IMRosen"]
[Result "1/2-1/2"]
[WhiteElo "2486"]
[BlackElo "2672"]
[TimeControl "180+1"]
[EndTime "15:30:35 PST"]
[Termination "Game drawn by 50-move rule"]

1. Nf3 {[%clk 0:03:00.3]} 1... d5 {[%clk 0:02:58.9]} 2. b3 {[%clk 0:02:59.7]}
2... Nf6 {[%clk 0:02:56.1]} 3. Bb2 {[%clk 0:02:54.7]} 3... Bg4 {[%clk
0:02:56.6]} 4. Ne5 {[%clk 0:02:52.2]} 4... h5 {[%clk 0:02:55.2]} 5. Nxg4 {[%clk
0:02:49.1]} 5... hxg4 {[%clk 0:02:56.1]} 6. g3 {[%clk 0:02:49.2]} 6... Nbd7
{[%clk 0:02:53.3]} 7. h4 {[%clk 0:02:48.7]} 7... e5 {[%clk 0:02:47.2]} 8. Bg2
{[%clk 0:02:46.1]} 8... Bd6 {[%clk 0:02:46.9]} 9. d3 {[%clk 0:02:42.1]} 9... Qe7
{[%clk 0:02:44.4]} 10. Nd2 {[%clk 0:02:39.5]} 10... c6 {[%clk 0:02:44.8]} 11. e4
{[%clk 0:02:37.2]} 11... d4 {[%clk 0:02:43.9]} 12. Nc4 {[%clk 0:02:37.1]} 12...
Bc7 {[%clk 0:02:44.6]} 13. a4 {[%clk 0:02:31.3]} 13... b6 {[%clk 0:02:34.8]} 14.
Ba3 {[%clk 0:02:29.9]} 14... c5 {[%clk 0:02:35.1]} 15. Qd2 {[%clk 0:02:27.6]}
15... a6 {[%clk 0:02:32.8]} 16. Nb2 {[%clk 0:02:23.2]} 16... b5 {[%clk
0:02:23.3]} 17. b4 {[%clk 0:02:15.1]} 17... a5 {[%clk 0:01:25.9]} 18. c3 {[%clk
0:01:21.2]} 18... dxc3 {[%clk 0:01:25.1]} 19. Qxc3 {[%clk 0:01:22.1]} 19... Qd8
{[%clk 0:01:15.5]} 20. Rc1 {[%clk 0:01:15.2]} 20... Rc8 {[%clk 0:00:48.8]} 21.
axb5 {[%clk 0:00:51.6]} 21... axb4 {[%clk 0:00:44.8]} 22. Bxb4 {[%clk
0:00:49.7]} 22... cxb4 {[%clk 0:00:45.7]} 23. Qb3 {[%clk 0:00:45.8]} 23... O-O
{[%clk 0:00:42.1]} 24. O-O {[%clk 0:00:44.9]} 24... Bd6 {[%clk 0:00:42.3]} 25.
Nc4 {[%clk 0:00:44.9]} 25... Bc5 {[%clk 0:00:41.9]} 26. Ra1 {[%clk 0:00:44.2]}
26... Ra8 {[%clk 0:00:39.7]} 27. Ra6 {[%clk 0:00:41.1]} 27... Rxa6 {[%clk
0:00:30.1]} 28. bxa6 {[%clk 0:00:42]} 28... Qa8 {[%clk 0:00:30.6]} 29. Ra1
{[%clk 0:00:42]} 29... Qa7 {[%clk 0:00:31.3]} 30. Ra2 {[%clk 0:00:37.8]} 30...
Rc8 {[%clk 0:00:30.6]} 31. Bf1 {[%clk 0:00:24.1]} 31... Rc6 {[%clk 0:00:27.4]}
32. Qa4 {[%clk 0:00:21]} 32... Re6 {[%clk 0:00:18.7]} 33. Qb5 {[%clk 0:00:18.5]}
33... b3 {[%clk 0:00:16.1]} 34. Qxb3 {[%clk 0:00:14.5]} 34... Rxa6 {[%clk
0:00:16.3]} 35. Rxa6 {[%clk 0:00:14.6]} 35... Qxa6 {[%clk 0:00:14.6]} 36. d4
{[%clk 0:00:10.7]} 36... Bxd4 {[%clk 0:00:11.8]} 37. Nxe5 {[%clk 0:00:10.4]}
37... Bxf2+ {[%clk 0:00:06]} 38. Kg2 {[%clk 0:00:07.5]} 38... Qa7 {[%clk
0:00:06.6]} 39. Qxf7+ {[%clk 0:00:05.8]} 39... Kh8 {[%clk 0:00:06.1]} 40. Ng6+
{[%clk 0:00:05.9]} 40... Kh7 {[%clk 0:00:06.7]} 41. e5 {[%clk 0:00:03.5]} 41...
Bg1 {[%clk 0:00:06.5]} 42. Nf8+ {[%clk 0:00:02.3]} 42... Kh8 {[%clk 0:00:04.9]}
43. Ng6+ {[%clk 0:00:02.7]} 43... Kh7 {[%clk 0:00:05.4]} 44. Nf8+ {[%clk
0:00:03.6]} 44... Nxf8 {[%clk 0:00:04.7]} 45. Qxa7 {[%clk 0:00:04.5]} 45... Bxa7
{[%clk 0:00:05.1]} 46. exf6 {[%clk 0:00:05.1]} 46... gxf6 {[%clk 0:00:06]} 47.
Bd3+ {[%clk 0:00:05.8]} 47... Kg7 {[%clk 0:00:06.1]} 48. Bf5 {[%clk 0:00:06.7]}
48... Ng6 {[%clk 0:00:03.4]} 49. Bxg4 {[%clk 0:00:06.6]} 49... Ne5 {[%clk
0:00:04]} 50. Bf5 {[%clk 0:00:06.1]} 50... Nf7 {[%clk 0:00:04]} 51. Kh3 {[%clk
0:00:06.4]} 51... Nh6 {[%clk 0:00:03.9]} 52. Be6 {[%clk 0:00:06.6]} 52... Bd4
{[%clk 0:00:04.1]} 53. g4 {[%clk 0:00:06.7]} 53... Be3 {[%clk 0:00:03.1]} 54. g5
{[%clk 0:00:06.4]} 54... fxg5 {[%clk 0:00:02.3]} 55. hxg5 {[%clk 0:00:07.3]}
55... Bxg5 {[%clk 0:00:03.2]} 56. Kg3 {[%clk 0:00:07.5]} 56... Kf6 {[%clk
0:00:03.4]} 57. Bh3 {[%clk 0:00:08.2]} 57... Ke5 {[%clk 0:00:03.9]} 58. Bc8
{[%clk 0:00:08.5]} 58... Bf4+ {[%clk 0:00:04.3]} 59. Kf3 {[%clk 0:00:08.3]}
59... Nf7 {[%clk 0:00:04]} 60. Kg4 {[%clk 0:00:08.9]} 60... Bc1 {[%clk
0:00:03.3]} 61. Bb7 {[%clk 0:00:09]} 61... Kd4 {[%clk 0:00:02.9]} 62. Kf3 {[%clk
0:00:09.9]} 62... Ne5+ {[%clk 0:00:03.2]} 63. Kg3 {[%clk 0:00:09.8]} 63... Ke3
{[%clk 0:00:03]} 64. Ba8 {[%clk 0:00:10.7]} 64... Bb2 {[%clk 0:00:03.3]} 65. Kh4
{[%clk 0:00:11.1]} 65... Kf4 {[%clk 0:00:03.4]} 66. Kh5 {[%clk 0:00:11.4]} 66...
Kf5 {[%clk 0:00:02.9]} 67. Kh6 {[%clk 0:00:11.2]} 67... Bc1+ {[%clk 0:00:01.8]}
68. Kh7 {[%clk 0:00:10.6]} 68... Kf6 {[%clk 0:00:01.9]} 69. Bd5 {[%clk
0:00:10.7]} 69... Bg5 {[%clk 0:00:02]} 70. Kg8 {[%clk 0:00:10.4]} 70... Nd7
{[%clk 0:00:02.1]} 71. Bb3 {[%clk 0:00:09.6]} 71... Bh6 {[%clk 0:00:02.3]} 72.
Kh7 {[%clk 0:00:09.9]} 72... Bg7 {[%clk 0:00:02.4]} 73. Bc2 {[%clk 0:00:10.3]}
73... Nf8+ {[%clk 0:00:02.1]} 74. Kg8 {[%clk 0:00:10.9]} 74... Ne6 {[%clk
0:00:03]} 75. Bb3 {[%clk 0:00:11.1]} 75... Ng5 {[%clk 0:00:03.2]} 76. Bc2 {[%clk
0:00:10.5]} 76... Nf3 {[%clk 0:00:03.7]} 77. Bd1 {[%clk 0:00:09.5]} 77... Nd4
{[%clk 0:00:04.1]} 78. Bg4 {[%clk 0:00:08.6]} 78... Kg6 {[%clk 0:00:04.2]} 79.
Bd7 {[%clk 0:00:08.1]} 79... Kf6 {[%clk 0:00:03.3]} 80. Bg4 {[%clk 0:00:07.8]}
80... Nc6 {[%clk 0:00:03.6]} 81. Bf3 {[%clk 0:00:07.5]} 81... Ne7+ {[%clk
0:00:03.5]} 82. Kh7 {[%clk 0:00:08]} 82... Bf8 {[%clk 0:00:03.8]} 83. Bh5 {[%clk
0:00:07.7]} 83... Nf5 {[%clk 0:00:03.7]} 84. Bg6 {[%clk 0:00:07.9]} 84... Nh4
{[%clk 0:00:02.9]} 85. Bh5 {[%clk 0:00:08.5]} 85... Ke7 {[%clk 0:00:02.1]} 86.
Bd1 {[%clk 0:00:08.4]} 86... Kf7 {[%clk 0:00:02.5]} 87. Bh5+ {[%clk 0:00:07.7]}
87... Kf6 {[%clk 0:00:03.1]} 88. Bd1 {[%clk 0:00:08.6]} 88... Ng2 {[%clk
0:00:03.5]} 89. Bf3 {[%clk 0:00:08.2]} 89... Ne3 {[%clk 0:00:03.7]} 90. Be4
{[%clk 0:00:08.2]} 90... Bg7 {[%clk 0:00:03.8]} 91. Kg8 {[%clk 0:00:08.2]} 91...
Ng4 {[%clk 0:00:03.5]} 92. Kh7 {[%clk 0:00:07.8]} 92... Ne5 {[%clk 0:00:03]} 93.
Bb1 {[%clk 0:00:06.8]} 93... Nd7 {[%clk 0:00:03.4]} 94. Ba2 {[%clk 0:00:07.2]}
94... Ne5 {[%clk 0:00:02.5]} 95. Kg8 {[%clk 0:00:07.5]} 95... Kg6 {[%clk
0:00:02.4]} 96. Bb1+ {[%clk 0:00:07.8]} 96... Kh6 {[%clk 0:00:02.9]} 97. Bc2
{[%clk 0:00:07.2]} 97... Bf6 {[%clk 0:00:02.5]} 98. Kf8 {[%clk 0:00:07.1]} 98...
Kg5 {[%clk 0:00:02.7]} 99. Ke8 {[%clk 0:00:07.4]} 99... Kf4 {[%clk 0:00:02.4]}
100. Kf8 {[%clk 0:00:07.3]} 100... Ke3 {[%clk 0:00:01.9]} 101. Kg8 {[%clk
0:00:07.6]} 101... Kd2 {[%clk 0:00:02.3]} 102. Bf5 {[%clk 0:00:07.9]} 102... Kc3
{[%clk 0:00:02.4]} 103. Kh7 {[%clk 0:00:08.5]} 103... Kd4 {[%clk 0:00:02.9]}
104. Be6 {[%clk 0:00:09]} 104... Kc5 {[%clk 0:00:03.2]} 105. Kh6 {[%clk
0:00:09.6]} 105... Kd6 {[%clk 0:00:03.5]} 1/2-1/2

[Event "Late-Titled-Tuesday-Blitz-February-20-2024"]
[Site "Chess.com"]
[Date "2024.02.20"]
[Round "8"]
[White "Andrei_Skvortsov"]
[Black "ahkashefi2800"]
[Result "0-1"]
[WhiteElo "2688"]
[BlackElo "2570"]
[TimeControl "180+1"]
[EndTime "15:30:40 PST"]
[Termination "ahkashefi2800 won on time"]

1. e4 {[%clk 0:03:00.9]} 1... c6 {[%clk 0:03:00.1]} 2. d4 {[%clk 0:02:58.8]}
2... d5 {[%clk 0:02:58.5]} 3. e5 {[%clk 0:02:59.3]} 3... Bf5 {[%clk 0:02:58.5]}
4. c4 {[%clk 0:02:59.7]} 4... e6 {[%clk 0:02:58.9]} 5. Nc3 {[%clk 0:03:00.2]}
5... Ne7 {[%clk 0:02:59.1]} 6. a3 {[%clk 0:03:00.3]} 6... dxc4 {[%clk
0:02:59.3]} 7. Bxc4 {[%clk 0:03:01.2]} 7... Nd7 {[%clk 0:02:58.8]} 8. Nge2
{[%clk 0:03:00.4]} 8... Nd5 {[%clk 0:02:57.8]} 9. Nxd5 {[%clk 0:02:56.6]} 9...
cxd5 {[%clk 0:02:57.6]} 10. Bd3 {[%clk 0:02:55.5]} 10... Bg6 {[%clk 0:02:56]}
11. h4 {[%clk 0:02:55.3]} 11... Be7 {[%clk 0:02:55.9]} 12. h5 {[%clk 0:02:49.3]}
12... Bxd3 {[%clk 0:02:55.9]} 13. Qxd3 {[%clk 0:02:49.8]} 13... Rc8 {[%clk
0:02:49.1]} 14. h6 {[%clk 0:02:47.8]} 14... g6 {[%clk 0:02:48.2]} 15. Bd2 {[%clk
0:02:48.1]} 15... O-O {[%clk 0:02:44]} 16. g3 {[%clk 0:02:45.3]} 16... Qb6
{[%clk 0:02:40.9]} 17. b4 {[%clk 0:02:36.9]} 17... Rc4 {[%clk 0:02:39.9]} 18.
Kf1 {[%clk 0:02:35.6]} 18... Rfc8 {[%clk 0:02:35.3]} 19. Kg2 {[%clk 0:02:36.1]}
19... Qc6 {[%clk 0:01:54.4]} 20. Rhc1 {[%clk 0:02:31.2]} 20... b5 {[%clk
0:01:53.6]} 21. Rc3 {[%clk 0:02:27.2]} 21... Nb6 {[%clk 0:01:53.2]} 22. Rb3
{[%clk 0:02:20.8]} 22... Na4 {[%clk 0:01:52.7]} 23. Rab1 {[%clk 0:02:18.6]}
23... a6 {[%clk 0:01:52.2]} 24. Ra1 {[%clk 0:02:18.5]} 24... Qe8 {[%clk
0:01:51.8]} 25. Be3 {[%clk 0:02:16.8]} 25... Qf8 {[%clk 0:01:52]} 26. Nf4 {[%clk
0:02:16.5]} 26... Rc2 {[%clk 0:01:47.6]} 27. Qf1 {[%clk 0:02:00.9]} 27... Nb2
{[%clk 0:01:45.8]} 28. Nd3 {[%clk 0:02:00.9]} 28... Nc4 {[%clk 0:01:43.8]} 29.
Bf4 {[%clk 0:01:54.8]} 29... g5 {[%clk 0:01:40]} 30. Bc1 {[%clk 0:01:54.2]}
30... Qxh6 {[%clk 0:01:39.7]} 31. Qd1 {[%clk 0:01:51.5]} 31... Qg6 {[%clk
0:01:36.8]} 32. Kg1 {[%clk 0:01:42.7]} 32... Nb6 {[%clk 0:01:22]} 33. Nc5 {[%clk
0:01:43.1]} 33... h5 {[%clk 0:00:58.6]} 34. Rd3 {[%clk 0:01:40.7]} 34... Rc4
{[%clk 0:00:53.7]} 35. Kg2 {[%clk 0:01:39.4]} 35... Bxc5 {[%clk 0:00:50.7]} 36.
bxc5 {[%clk 0:01:38.5]} 36... Nd7 {[%clk 0:00:49.4]} 37. Ra2 {[%clk 0:01:30.2]}
37... Nb8 {[%clk 0:00:46.5]} 38. Re2 {[%clk 0:01:27.5]} 38... Nc6 {[%clk
0:00:46.7]} 39. Be3 {[%clk 0:01:28.1]} 39... a5 {[%clk 0:00:45.8]} 40. Qd2
{[%clk 0:01:27.4]} 40... g4 {[%clk 0:00:33.1]} 41. Re1 {[%clk 0:01:27.4]} 41...
Qe4+ {[%clk 0:00:24]} 42. Kg1 {[%clk 0:01:27.8]} 42... b4 {[%clk 0:00:23]} 43.
axb4 {[%clk 0:01:26.8]} 43... axb4 {[%clk 0:00:22.6]} 44. Ra1 {[%clk 0:01:25.9]}
44... Rb8 {[%clk 0:00:17.4]} 45. Rb1 {[%clk 0:01:18.2]} 45... Nxd4 {[%clk
0:00:17.7]} 46. Bxd4 {[%clk 0:01:17.2]} 46... Rxd4 {[%clk 0:00:17.9]} 47. Qg5+
{[%clk 0:01:05.4]} 47... Kf8 {[%clk 0:00:16.4]} 48. Qh6+ {[%clk 0:01:04.9]}
48... Ke7 {[%clk 0:00:16.3]} 49. Qf6+ {[%clk 0:01:04.2]} 49... Ke8 {[%clk
0:00:12.8]} 50. Qh8+ {[%clk 0:00:32.8]} 50... Kd7 {[%clk 0:00:08.7]} 51. Qxb8
{[%clk 0:00:31.9]} 51... Qxd3 {[%clk 0:00:07.8]} 52. Rxb4 {[%clk 0:00:15.2]}
52... Rxb4 {[%clk 0:00:07.6]} 53. Qxb4 {[%clk 0:00:14.5]} 53... Qd1+ {[%clk
0:00:07.6]} 54. Kh2 {[%clk 0:00:14.8]} 54... Qf3 {[%clk 0:00:07.6]} 55. Qb7+
{[%clk 0:00:15]} 55... Ke8 {[%clk 0:00:07.6]} 56. Qb8+ {[%clk 0:00:15.6]} 56...
Ke7 {[%clk 0:00:08]} 57. Qa7+ {[%clk 0:00:15.5]} 57... Kf8 {[%clk 0:00:08.2]}
58. c6 {[%clk 0:00:15.4]} 58... h4 {[%clk 0:00:07.7]} 59. gxh4 {[%clk
0:00:10.4]} 59... Qf4+ {[%clk 0:00:07.8]} 60. Kg2 {[%clk 0:00:10]} 60... Qe4+
{[%clk 0:00:08.1]} 61. Kf1 {[%clk 0:00:10]} 61... Qc4+ {[%clk 0:00:06.6]} 62.
Kg1 {[%clk 0:00:09.2]} 62... Qxc6 {[%clk 0:00:07]} 63. Qa3+ {[%clk 0:00:09.4]}
63... Kg7 {[%clk 0:00:06.6]} 64. Qe3 {[%clk 0:00:10.1]} 64... Qc4 {[%clk
0:00:03.7]} 65. h5 {[%clk 0:00:07.8]} 65... Kh7 {[%clk 0:00:02.7]} 66. Qg5
{[%clk 0:00:07.2]} 66... Qe4 {[%clk 0:00:02.1]} 67. Qf6 {[%clk 0:00:06.4]} 67...
Qf5 {[%clk 0:00:02.1]} 68. Qe7 {[%clk 0:00:03.8]} 68... Kg7 {[%clk 0:00:02.4]}
69. h6+ {[%clk 0:00:03.6]} 69... Kxh6 {[%clk 0:00:02.6]} 70. Qf8+ {[%clk
0:00:04.3]} 70... Kh7 {[%clk 0:00:02.5]} 71. Kf1 {[%clk 0:00:03.9]} 71... Qf3
{[%clk 0:00:02.6]} 72. Kg1 {[%clk 0:00:03.9]} 72... g3 {[%clk 0:00:02.9]} 73.
fxg3 {[%clk 0:00:04.6]} 73... Qxg3+ {[%clk 0:00:03.2]} 74. Kf1 {[%clk
0:00:05.1]} 74... Qf4+ {[%clk 0:00:03.4]} 75. Kg1 {[%clk 0:00:05.1]} 75... Qg4+
{[%clk 0:00:03.7]} 76. Kf2 {[%clk 0:00:05.4]} 76... Qf4+ {[%clk 0:00:03.9]} 77.
Kg2 {[%clk 0:00:05.8]} 77... Qg5+ {[%clk 0:00:04.4]} 78. Kf3 {[%clk 0:00:05.9]}
78... Qf5+ {[%clk 0:00:04.9]} 79. Kg2 {[%clk 0:00:06.3]} 79... d4 {[%clk
0:00:05]} 80. Qd6 {[%clk 0:00:05.1]} 80... d3 {[%clk 0:00:05.6]} 81. Kg3 {[%clk
0:00:04.6]} 81... Kg6 {[%clk 0:00:05.5]} 82. Kg2 {[%clk 0:00:04.6]} 82... Qg4+
{[%clk 0:00:05.1]} 83. Kf2 {[%clk 0:00:04.8]} 83... Qe2+ {[%clk 0:00:05.3]} 84.
Kg3 {[%clk 0:00:04.9]} 84... Qe1+ {[%clk 0:00:05.4]} 85. Kg2 {[%clk 0:00:03.7]}
85... Qe4+ {[%clk 0:00:04.6]} 86. Kg3 {[%clk 0:00:03.8]} 86... Kf5 {[%clk
0:00:04.4]} 87. Qe7 {[%clk 0:00:03.2]} 87... Qxe5+ {[%clk 0:00:04.6]} 88. Kf3
{[%clk 0:00:03.8]} 88... Qe2+ {[%clk 0:00:04.9]} 89. Kg3 {[%clk 0:00:04.2]}
89... f6 {[%clk 0:00:05]} 90. Qh7+ {[%clk 0:00:03.9]} 90... Ke5 {[%clk 0:00:05]}
91. Qc7+ {[%clk 0:00:04.6]} 91... Ke4 {[%clk 0:00:05.3]} 92. Qc6+ {[%clk
0:00:04.7]} 92... Kf5 {[%clk 0:00:05.2]} 93. Qc3 {[%clk 0:00:02.8]} 93... Qe5+
{[%clk 0:00:05]} 0-1

[Event "Late-Titled-Tuesday-Blitz-February-20-2024"]
[Site "Chess.com"]
[Date "2024.02.20"]
[Round "9"]
[White "Phamtrangiaphuc2009"]
[Black "MyDream003"]
[Result "1-0"]
[WhiteElo "2478"]
[BlackElo "2744"]
[TimeControl "180+1"]
[EndTime "15:39:08 PST"]
[Termination "Phamtrangiaphuc2009 won by resignation"]

1. e4 {[%clk 0:03:00.9]} 1... e5 {[%clk 0:02:50.8]} 2. Nf3 {[%clk 0:02:58.1]}
2... Nc6 {[%clk 0:02:50.9]} 3. Nc3 {[%clk 0:02:57.9]} 3... Nf6 {[%clk
0:02:51.2]} 4. Bb5 {[%clk 0:02:57.9]} 4... Nd4 {[%clk 0:02:48.1]} 5. Bc4 {[%clk
0:02:57.2]} 5... Bc5 {[%clk 0:02:47.2]} 6. Nxe5 {[%clk 0:02:56.2]} 6... Qe7
{[%clk 0:02:46.1]} 7. Nf3 {[%clk 0:02:53.9]} 7... d5 {[%clk 0:02:46.4]} 8. Nxd5
{[%clk 0:02:41]} 8... Qxe4+ {[%clk 0:02:44.5]} 9. Ne3 {[%clk 0:02:40.9]} 9...
Bg4 {[%clk 0:02:44.8]} 10. Be2 {[%clk 0:02:41.1]} 10... Nxe2 {[%clk 0:02:42.9]}
11. Qxe2 {[%clk 0:02:41.1]} 11... Bxf3 {[%clk 0:02:43.3]} 12. Qxf3 {[%clk
0:02:39.9]} 12... Qxf3 {[%clk 0:02:43.1]} 13. gxf3 {[%clk 0:02:39.9]} 13...
O-O-O {[%clk 0:02:44]} 14. d3 {[%clk 0:02:39.6]} 14... Rhe8 {[%clk 0:02:43.8]}
15. Bd2 {[%clk 0:02:39.7]} 15... Nd5 {[%clk 0:02:38.4]} 16. Ke2 {[%clk
0:02:39.4]} 16... Nf4+ {[%clk 0:02:35.1]} 17. Kf1 {[%clk 0:02:35.5]} 17... Re6
{[%clk 0:02:34.7]} 18. Rg1 {[%clk 0:02:34.8]} 18... Rh6 {[%clk 0:02:32.7]} 19.
Ng4 {[%clk 0:02:30.8]} 19... Rb6 {[%clk 0:02:21.3]} 20. Bxf4 {[%clk 0:02:27]}
20... Rxb2 {[%clk 0:02:22.2]} 21. Be3 {[%clk 0:02:20.6]} 21... Rxd3 {[%clk
0:02:23.1]} 1-0

[Event "Late-Titled-Tuesday-Blitz-February-20-2024"]
[Site "Chess.com"]
[Date "2024.02.20"]
[Round "9"]
[White "Godzillator"]
[Black "pfalcon1949"]
[Result "1-0"]
[WhiteElo "2326"]
[BlackElo "2016"]
[TimeControl "180+1"]
[EndTime "15:40:12 PST"]
[Termination "Godzillator won by resignation"]

1. Nf3 {[%clk 0:03:00.9]} 1... c5 {[%clk 0:02:54.7]} 2. c3 {[%clk 0:02:56]} 2...
Nc6 {[%clk 0:02:53.3]} 3. d4 {[%clk 0:02:56.2]} 3... cxd4 {[%clk 0:02:53.6]} 4.
cxd4 {[%clk 0:02:56.4]} 4... d5 {[%clk 0:02:53.8]} 5. Bf4 {[%clk 0:02:54]} 5...
Nf6 {[%clk 0:02:51.4]} 6. Nc3 {[%clk 0:02:54.1]} 6... e6 {[%clk 0:02:51.1]} 7.
e3 {[%clk 0:02:53.6]} 7... a6 {[%clk 0:02:50.8]} 8. Bd3 {[%clk 0:02:52.8]} 8...
Bd6 {[%clk 0:02:50.5]} 9. Bg3 {[%clk 0:02:52]} 9... O-O {[%clk 0:02:49.6]} 10.
Rc1 {[%clk 0:02:51.9]} 10... Re8 {[%clk 0:02:41.9]} 11. Bb1 {[%clk 0:02:51.2]}
11... Bxg3 {[%clk 0:02:34]} 12. hxg3 {[%clk 0:02:50.6]} 12... h6 {[%clk
0:02:34.4]} 13. O-O {[%clk 0:02:46.2]} 13... Bd7 {[%clk 0:02:27.8]} 14. a3
{[%clk 0:02:45.1]} 14... Na5 {[%clk 0:02:25.9]} 15. Ne5 {[%clk 0:02:44.4]} 15...
Rc8 {[%clk 0:02:22.7]} 16. Qd3 {[%clk 0:02:39]} 16... g6 {[%clk 0:02:00.5]} 17.
Nxg6 {[%clk 0:02:33.4]} 17... fxg6 {[%clk 0:01:59.5]} 18. Qxg6+ {[%clk
0:02:33.3]} 18... Kh8 {[%clk 0:01:58.6]} 19. Qxh6+ {[%clk 0:02:33.4]} 19... Kg8
{[%clk 0:01:58.4]} 20. g4 {[%clk 0:02:28.5]} 20... Qe7 {[%clk 0:01:35.2]} 21. g5
{[%clk 0:02:28.5]} 21... Ne4 {[%clk 0:01:31.6]} 22. Bxe4 {[%clk 0:02:24.2]}
22... dxe4 {[%clk 0:01:31]} 23. Nxe4 {[%clk 0:02:23.8]} 23... Rxc1 {[%clk
0:01:29.6]} 24. Nf6+ {[%clk 0:02:18.4]} 1-0

[Event "Late-Titled-Tuesday-Blitz-February-20-2024"]
[Site "Chess.com"]
[Date "2024.02.20"]
[Round "9"]
[White "SouS007"]
[Black "jamengrand"]
[Result "0-1"]
[WhiteElo "2483"]
[BlackElo "2371"]
[TimeControl "180+1"]
[EndTime "15:40:25 PST"]
[Termination "jamengrand won by checkmate"]

1. e4 {[%clk 0:03:00.9]} 1... c5 {[%clk 0:02:58.5]} 2. Nf3 {[%clk 0:02:59.7]}
2... Nc6 {[%clk 0:02:58.1]} 3. d4 {[%clk 0:02:58.9]} 3... cxd4 {[%clk
0:02:58.1]} 4. Nxd4 {[%clk 0:02:59.8]} 4... g6 {[%clk 0:02:58.4]} 5. c4 {[%clk
0:02:59.1]} 5... Bg7 {[%clk 0:02:58.6]} 6. Be3 {[%clk 0:02:59.1]} 6... Nf6
{[%clk 0:02:58.8]} 7. Nc3 {[%clk 0:02:59]} 7... O-O {[%clk 0:02:58.7]} 8. Be2
{[%clk 0:02:55.7]} 8... d6 {[%clk 0:02:58.8]} 9. f3 {[%clk 0:02:55.7]} 9... Nxd4
{[%clk 0:02:54.4]} 10. Bxd4 {[%clk 0:02:55.4]} 10... Bd7 {[%clk 0:02:54.6]} 11.
O-O {[%clk 0:02:55]} 11... Bc6 {[%clk 0:02:53.8]} 12. Qd2 {[%clk 0:02:51.7]}
12... a5 {[%clk 0:02:53.9]} 13. Rac1 {[%clk 0:02:49.2]} 13... Nd7 {[%clk
0:02:53.9]} 14. Be3 {[%clk 0:02:48]} 14... Nc5 {[%clk 0:02:53.7]} 15. Rfd1
{[%clk 0:02:46.8]} 15... Be5 {[%clk 0:02:50.6]} 16. Bf1 {[%clk 0:02:43.5]} 16...
e6 {[%clk 0:02:48]} 17. Qf2 {[%clk 0:02:42.8]} 17... Qf6 {[%clk 0:02:43.5]} 18.
h4 {[%clk 0:02:29.1]} 18... Rfd8 {[%clk 0:02:24.8]} 19. Bg5 {[%clk 0:02:27.2]}
19... Qg7 {[%clk 0:02:17.3]} 20. Bxd8 {[%clk 0:02:25]} 20... Rxd8 {[%clk
0:02:17.8]} 21. Qe3 {[%clk 0:02:01.7]} 21... h6 {[%clk 0:01:56.8]} 22. b3 {[%clk
0:01:52.9]} 22... Qf6 {[%clk 0:01:54.7]} 23. Ne2 {[%clk 0:01:45.8]} 23... Qxh4
{[%clk 0:01:50.3]} 24. a3 {[%clk 0:01:42.5]} 24... Bh2+ {[%clk 0:01:48.7]} 25.
Kh1 {[%clk 0:01:41.2]} 25... Bg3+ {[%clk 0:01:48.6]} 26. Kg1 {[%clk 0:01:41.9]}
26... Qh2# {[%clk 0:01:48.9]} 0-1

[Event "Late-Titled-Tuesday-Blitz-February-20-2024"]
[Site "Chess.com"]
[Date "2024.02.20"]
[Round "9"]
[White "Malev212"]
[Black "Muracle"]
[Result "0-1"]
[WhiteElo "2649"]
[BlackElo "2498"]
[TimeControl "180+1"]
[EndTime "15:40:32 PST"]
[Termination "Muracle won by resignation"]

1. e4 {[%clk 0:02:59.3]} 1... c6 {[%clk 0:02:57.4]} 2. d4 {[%clk 0:02:57.7]}
2... d5 {[%clk 0:02:58.3]} 3. exd5 {[%clk 0:02:57.5]} 3... cxd5 {[%clk
0:02:59.2]} 4. Bd3 {[%clk 0:02:55.1]} 4... Nc6 {[%clk 0:02:57.8]} 5. c3 {[%clk
0:02:55]} 5... Nf6 {[%clk 0:02:56.9]} 6. Bf4 {[%clk 0:02:54.1]} 6... Bg4 {[%clk
0:02:56.3]} 7. Nf3 {[%clk 0:02:53.9]} 7... Qd7 {[%clk 0:02:52.3]} 8. Nbd2 {[%clk
0:02:45.2]} 8... e6 {[%clk 0:02:38.6]} 9. Qb1 {[%clk 0:02:35.4]} 9... Bd6 {[%clk
0:02:36.1]} 10. Bxd6 {[%clk 0:02:16.3]} 10... Qxd6 {[%clk 0:02:37]} 11. O-O
{[%clk 0:02:15.5]} 11... O-O {[%clk 0:02:35]} 12. Re1 {[%clk 0:02:15.2]} 12...
Bh5 {[%clk 0:02:32.4]} 13. Ne5 {[%clk 0:02:14.9]} 13... Bg6 {[%clk 0:02:32.7]}
14. Nxg6 {[%clk 0:02:11.8]} 14... hxg6 {[%clk 0:02:33.6]} 15. Nf3 {[%clk
0:02:11.1]} 15... Nd7 {[%clk 0:02:31.8]} 16. h4 {[%clk 0:02:03.2]} 16... e5
{[%clk 0:02:29.2]} 17. dxe5 {[%clk 0:02:01.2]} 17... Ndxe5 {[%clk 0:02:30.1]}
18. Nxe5 {[%clk 0:01:59.6]} 18... Nxe5 {[%clk 0:02:31]} 19. Be2 {[%clk
0:01:52.7]} 19... Rae8 {[%clk 0:02:31.1]} 20. Qd1 {[%clk 0:01:51.7]} 20... Re6
{[%clk 0:02:23.8]} 21. Qd2 {[%clk 0:01:36.5]} 21... Rfe8 {[%clk 0:02:23.6]} 22.
Rad1 {[%clk 0:01:36]} 22... Qe7 {[%clk 0:02:20.3]} 23. Rf1 {[%clk 0:01:29.8]}
23... Qxh4 {[%clk 0:02:17.8]} 24. Qxd5 {[%clk 0:01:26.8]} 24... g5 {[%clk
0:02:16.7]} 25. Rd4 {[%clk 0:01:23.5]} 25... g4 {[%clk 0:02:14.8]} 26. Bb5
{[%clk 0:01:23]} 26... Rh6 {[%clk 0:02:11.4]} 0-1

[Event "Late-Titled-Tuesday-Blitz-February-20-2024"]
[Site "Chess.com"]
[Date "2024.02.20"]
[Round "9"]
[White "DraningWaterHi"]
[Black "ajeale2"]
[Result "0-1"]
[WhiteElo "2263"]
[BlackElo "2496"]
[TimeControl "180+1"]
[EndTime "15:40:58 PST"]
[Termination "ajeale2 won by resignation"]

1. d4 {[%clk 0:03:00.9]} 1... g6 {[%clk 0:02:55.8]} 2. e4 {[%clk 0:03:00]} 2...
Bg7 {[%clk 0:02:56.3]} 3. g3 {[%clk 0:02:57.8]} 3... d6 {[%clk 0:02:56.9]} 4.
Bg2 {[%clk 0:02:57.9]} 4... Nd7 {[%clk 0:02:57.4]} 5. Nf3 {[%clk 0:02:57.4]}
5... e5 {[%clk 0:02:57]} 6. O-O {[%clk 0:02:56.6]} 6... Ne7 {[%clk 0:02:57.1]}
7. c4 {[%clk 0:02:52.5]} 7... O-O {[%clk 0:02:57]} 8. Nc3 {[%clk 0:02:52.5]}
8... c6 {[%clk 0:02:55]} 9. d5 {[%clk 0:02:47.9]} 9... Qc7 {[%clk 0:02:50]} 10.
Ne1 {[%clk 0:02:46.2]} 10... f5 {[%clk 0:02:49.1]} 11. Nd3 {[%clk 0:02:46.2]}
11... Nf6 {[%clk 0:02:44.5]} 12. f3 {[%clk 0:02:40.9]} 12... Bd7 {[%clk
0:02:33.5]} 13. Be3 {[%clk 0:02:40.1]} 13... fxe4 {[%clk 0:02:27.1]} 14. fxe4
{[%clk 0:02:34.7]} 14... Ng4 {[%clk 0:02:26.2]} 15. Bg5 {[%clk 0:02:34.6]} 15...
Rxf1+ {[%clk 0:02:05.2]} 16. Bxf1 {[%clk 0:02:32]} 16... Re8 {[%clk 0:01:49]}
17. b4 {[%clk 0:02:26.1]} 17... cxd5 {[%clk 0:01:42]} 18. Bxe7 {[%clk
0:02:23.3]} 18... Qxc4 {[%clk 0:01:29.1]} 19. Nxd5 {[%clk 0:02:14.9]} 19... Qd4+
{[%clk 0:01:25.3]} 20. Kh1 {[%clk 0:02:10.7]} 20... Qxe4+ {[%clk 0:00:55.5]} 21.
Bg2 {[%clk 0:02:10.5]} 21... Qxd3 {[%clk 0:00:55.4]} 22. Bxd6 {[%clk 0:01:59.4]}
22... Nf2+ {[%clk 0:00:52.5]} 0-1